[Event "Chess Festival Groningen 2023 | A"]
[Site "Groningen, Netherlands"]
[Date "2023.12.22"]
[Round "2.11"]
[White "Aarav Dengla"]
[Black "Kumar, Prajit Sai"]
[Result "1-0"]
[TimeControl "90min/40moves + 30min + 30sec/move"]
[WhiteElo "2382"]
[BlackElo "2172"]

1. e4 {[%clk 01:30:49]} {[%emt 00:00:32]} c5 {[%clk 01:30:16]} {[%emt
00:00:45]} 2. Nf3 {[%clk 01:30:48]} {[%emt 00:00:13]} Nc6 {[%clk 01:30:40]}
{[%emt 00:00:05]} 3. Bb5 {[%clk 01:30:46]} {[%emt 00:00:34]} e6 {[%clk
01:30:24]} {[%emt 00:01:04]} 4. O-O {[%clk 01:30:18]} {[%emt 00:00:52]} Nge7
{[%clk 01:30:18]} {[%emt 00:00:19]} 5. d4 {[%clk 01:30:04]} {[%emt 00:00:53]}
cxd4 {[%clk 01:28:17]} {[%emt 00:02:29]} 6. Nxd4 {[%clk 01:29:59]} {[%emt
00:00:28]} Qb6 {[%clk 01:27:42]} {[%emt 00:01:37]} 7. Nxc6 {[%clk 01:29:40]}
{[%emt 00:00:45]} bxc6 {[%clk 01:27:44]} {[%emt 00:00:09]} 8. Bd3 {[%clk
01:29:23]} {[%emt 00:00:40]} Ng6 {[%clk 01:26:54]} {[%emt 00:01:24]} 9. c4
{[%clk 01:29:11]} {[%emt 00:00:39]} Be7 {[%clk 01:26:20]} {[%emt 00:01:01]} 10.
Nc3 {[%clk 01:28:11]} {[%emt 00:01:53]} c5 {[%clk 01:25:54]} {[%emt 00:01:20]}
11. f4 {[%clk 01:22:10]} {[%emt 00:05:45]} O-O {[%clk 01:23:29]} {[%emt
00:02:53]} 12. Qh5 {[%clk 00:52:58]} {[%emt 00:30:09]} d6 {[%clk 01:12:15]}
{[%emt 00:11:17]} 13. Rf3 {[%clk 00:40:07]} {[%emt 00:13:21]} Re8 {[%clk
01:01:59]} {[%emt 00:10:59]} 14. e5 {[%clk 00:32:55]} {[%emt 00:07:29]} f5
{[%clk 00:19:59]} {[%emt 00:42:28]} 15. exf6 {[%clk 00:28:26]} {[%emt
00:05:00]} Bxf6 {[%clk 00:20:23]} {[%emt 00:00:41]} 16. Rh3 {[%clk 00:23:03]}
{[%emt 00:05:18]} Kf7 {[%clk 00:19:00]} {[%emt 00:02:33]} 17. Qxh7 {[%clk
00:15:19]} {[%emt 00:07:33]} Nf8 {[%clk 00:19:05]} {[%emt 00:00:39]} 18. Qh5+
{[%clk 00:14:40]} {[%emt 00:01:05]} Ke7 {[%clk 00:18:51]} {[%emt 00:00:36]} 19.
f5 {[%clk 00:09:23]} {[%emt 00:05:46]} Kd8 {[%clk 00:17:08]} {[%emt 00:02:13]}
20. Be4 {[%clk 00:06:36]} {[%emt 00:03:39]} Rb8 {[%clk 00:15:32]} {[%emt
00:01:45]} 21. Bg5 {[%clk 00:05:13]} {[%emt 00:01:51]} exf5 {[%clk 00:09:04]}
{[%emt 00:06:57]} 22. Bxf5 {[%clk 00:04:29]} {[%emt 00:01:15]} Nd7 {[%clk
00:03:59]} {[%emt 00:05:34]} 23. Qxe8+ {[%clk 00:01:12]} {[%emt 00:03:47]} Kxe8
{[%clk 00:04:20]} {[%emt 00:00:40]} 24. Bg6+ {[%clk 00:01:39]} Kd8 {[%clk
00:04:08]} {[%emt 00:00:16]} 25. Rh8+ {[%clk 00:01:27]} {[%emt 00:00:41]} Nf8
{[%clk 00:00:51]} {[%emt 00:04:12]} 26. Rxf8+ {[%clk 00:00:46]} {[%emt
00:00:46]} Kd7 {[%clk 00:01:20]} 27. Bxf6 {[%clk 00:00:39]} {[%emt 00:00:54]}
gxf6 {[%clk 00:01:29]} {[%emt 00:00:14]} 28. Re1 {[%clk 00:00:35]} {[%emt
00:00:24]} Qxb2 {[%clk 00:01:26]} {[%emt 00:00:33]} 29. Nd5 {[%clk 00:00:35]}
{[%emt 00:00:44]} Qd4+ {[%clk 00:01:19]} {[%emt 00:00:23]} 30. Kh1 {[%clk
00:00:53]} {[%emt 00:00:37]} Qxc4 {[%clk 00:01:23]} {[%emt 00:00:09]} 31. Be8+
{[%clk 00:01:17]} Kd8 {[%clk 00:01:38]} {[%emt 00:00:13]} 32. Bb5# {[%clk
00:01:45]} {[%emt 00:00:08]} 1-0

[Event "Chess Festival Groningen 2023 | A"]
[Site "Groningen, Netherlands"]
[Date "2023.12.22"]
[Round "2.12"]
[White "Ter-Avetisjana, Agnesa Ste"]
[Black "Maatman, Nick"]
[Result "1/2-1/2"]
[TimeControl "90min/40moves + 30min + 30sec/move"]
[WhiteElo "1974"]
[BlackElo "2371"]

1. d4 {[%clk 01:30:58]} {[%emt 00:00:04]} Nf6 {[%clk 01:25:55]} {[%emt
00:05:38]} 2. Nf3 {[%clk 01:31:20]} d5 {[%clk 01:24:58]} {[%emt 00:01:01]} 3.
c4 {[%clk 01:31:32]} {[%emt 00:00:18]} e6 {[%clk 01:24:57]} {[%emt 00:00:33]} 4.
Nc3 {[%clk 01:31:55]} {[%emt 00:00:10]} Be7 {[%clk 01:23:32]} {[%emt 00:01:49]}
5. Bf4 {[%clk 01:28:45]} {[%emt 00:03:40]} O-O {[%clk 01:23:44]} {[%emt
00:00:19]} 6. e3 {[%clk 01:29:10]} {[%emt 00:00:07]} Nbd7 {[%clk 01:24:07]}
{[%emt 00:00:10]} 7. cxd5 {[%clk 01:27:53]} {[%emt 00:01:43]} exd5 {[%clk
01:02:43]} {[%emt 00:22:16]} 8. Bd3 {[%clk 01:26:54]} {[%emt 00:01:12]} c5
{[%clk 00:55:15]} {[%emt 00:07:51]} 9. O-O {[%clk 01:22:32]} {[%emt 00:04:51]}
a6 {[%clk 00:46:00]} {[%emt 00:09:47]} 10. dxc5 {[%clk 01:18:53]} {[%emt
00:04:08]} Nxc5 {[%clk 00:45:51]} {[%emt 00:00:39]} 11. Bc2 {[%clk 01:19:15]}
{[%emt 00:00:18]} Bg4 {[%clk 00:39:50]} {[%emt 00:06:22]} 12. h3 {[%clk
01:18:13]} {[%emt 00:01:34]} Bh5 {[%clk 00:37:07]} {[%emt 00:03:10]} 13. g4
{[%clk 01:15:08]} {[%emt 00:03:36]} Bg6 {[%clk 00:37:35]} {[%emt 00:00:28]} 14.
Bxg6 {[%clk 01:15:21]} {[%emt 00:00:16]} hxg6 {[%clk 00:37:57]} 15. g5 {[%clk
01:14:50]} {[%emt 00:00:58]} Nfe4 {[%clk 00:36:41]} {[%emt 00:01:31]} 16. Nxd5
{[%clk 01:10:55]} {[%emt 00:04:25]} Bxg5 {[%clk 00:25:55]} {[%emt 00:11:18]} 17.
Bc7 {[%clk 00:50:41]} {[%emt 00:20:40]} Qd7 {[%clk 00:17:43]} {[%emt 00:09:11]}
18. b4 {[%clk 00:50:50]} Bf6 {[%clk 00:05:04]} {[%emt 00:13:02]} 19. bxc5
{[%clk 00:44:22]} {[%emt 00:06:57]} Bxa1 {[%clk 00:05:24]} {[%emt 00:00:37]} 20.
Qd3 {[%clk 00:43:50]} {[%emt 00:00:35]} Nxc5 {[%clk 00:04:57]} {[%emt
00:00:57]} 21. Qc4 {[%emt 00:02:30]} Ne6 {[%clk 00:02:21]} {[%emt 00:02:50]} 22.
Rd1 {[%clk 00:41:44]} {[%emt 00:00:50]} Qb5 {[%clk 00:01:27]} {[%emt 00:01:25]}
23. Qxb5 {[%clk 00:36:39]} {[%emt 00:05:36]} axb5 {[%clk 00:01:48]} {[%emt
00:00:11]} 24. Rxa1 {[%clk 00:32:49]} {[%emt 00:04:17]} f6 {[%clk 00:02:13]}
{[%emt 00:00:07]} 25. Bb6 {[%clk 00:30:21]} {[%emt 00:03:02]} Kf7 {[%clk
00:01:15]} {[%emt 00:01:23]} 26. Nd4 {[%clk 00:25:06]} {[%emt 00:05:44]} Nxd4
{[%clk 00:01:43]} {[%emt 00:00:33]} 27. exd4 {[%clk 00:25:10]} {[%emt
00:00:08]} Ra6 {[%clk 00:01:06]} {[%emt 00:00:54]} 28. Re1 {[%clk 00:22:30]}
{[%emt 00:03:10]} Rxa2 {[%clk 00:00:54]} {[%emt 00:00:44]} 29. Re7+ {[%clk
00:22:55]} {[%emt 00:00:07]} Kg8 {[%clk 00:01:22]} 30. Rxb7 {[%clk 00:22:03]}
{[%emt 00:01:20]} Rf7 {[%clk 00:00:54]} {[%emt 00:01:01]} 31. Rb8+ {[%clk
00:18:46]} {[%emt 00:03:43]} Kh7 {[%clk 00:00:39]} {[%emt 00:00:46]} 32. Bc5
{[%clk 00:19:01]} {[%emt 00:00:30]} Rb2 {[%clk 00:00:43]} {[%emt 00:00:38]} 33.
Nb4 {[%clk 00:17:19]} {[%emt 00:01:46]} f5 {[%clk 00:00:45]} {[%emt 00:00:29]}
34. Nd3 {[%clk 00:14:51]} {[%emt 00:02:55]} Rb1+ {[%clk 00:00:46]} {[%emt
00:00:33]} 35. Kg2 {[%clk 00:15:15]} {[%emt 00:00:11]} f4 {[%clk 00:01:04]}
{[%emt 00:00:06]} 36. Ne5 {[%clk 00:14:51]} {[%emt 00:00:57]} Rf5 {[%clk
00:01:28]} {[%emt 00:00:10]} 37. h4 {[%clk 00:13:07]} {[%emt 00:02:06]} g5
{[%clk 00:01:21]} {[%emt 00:00:39]} 38. hxg5 {[%clk 00:08:22]} {[%emt
00:05:26]} Rxg5+ {[%clk 00:01:49]} 39. Kf3 {[%clk 00:08:35]} {[%emt 00:00:13]}
Rf5 {[%clk 00:01:52]} {[%emt 00:00:20]} 40. Rb7 {[%clk 00:06:48]} {[%emt
00:02:19]} Rb2 {[%clk 00:00:57]} {[%emt 00:01:31]} 41. Be7 {[%clk 00:05:51]}
{[%emt 00:01:37]} Kg8 {[%clk 00:22:55]} {[%emt 00:08:14]} 42. Kg4 {[%clk
00:31:44]} {[%emt 00:04:36]} g6 {[%clk 00:23:02]} {[%emt 00:00:24]} 43. Nxg6
{[%clk 00:31:38]} {[%emt 00:00:56]} Rf7 {[%clk 00:23:19]} 44. Ne5 {[%clk
00:27:38]} {[%emt 00:04:24]} Rg7+ {[%clk 00:22:51]} {[%emt 00:00:57]} 45. Kf3
{[%clk 00:24:19]} {[%emt 00:03:49]} Kh7 {[%clk 00:23:07]} {[%emt 00:00:14]} 46.
Nc6 {[%clk 00:15:48]} {[%emt 00:09:01]} Kg6 {[%clk 00:20:19]} {[%emt 00:03:19]}
47. d5 {[%clk 00:12:50]} {[%emt 00:03:26]} Kf5 {[%clk 00:18:03]} {[%emt
00:02:46]} 48. Nd4+ {[%clk 00:12:49]} {[%emt 00:00:34]} Ke5 {[%clk 00:18:01]}
{[%emt 00:00:30]} 49. d6 {[%clk 00:13:14]} {[%emt 00:00:07]} Rd2 {[%clk
00:15:07]} {[%emt 00:03:24]} 50. Nc6+ {[%clk 00:09:13]} {[%emt 00:04:31]} Kd5
{[%clk 00:14:54]} {[%emt 00:00:39]} 51. Rc7 {[%clk 00:07:30]} {[%emt 00:02:13]}
Rd3+ {[%clk 00:15:02]} {[%emt 00:00:21]} 52. Kxf4 {[%clk 00:04:54]} {[%emt
00:03:07]} Rf7+ {[%clk 00:15:13]} {[%emt 00:00:20]} 53. Kg5 {[%clk 00:04:14]}
{[%emt 00:01:09]} Ke4 {[%clk 00:10:24]} {[%emt 00:05:19]} 54. d7 {[%clk
00:02:34]} {[%emt 00:02:09]} b4 {[%clk 00:05:45]} {[%emt 00:05:16]} 55. d8=Q
{[%clk 00:02:43]} {[%emt 00:00:15]} Rxd8 {[%clk 00:06:10]} {[%emt 00:00:13]} 56.
Nxd8 {[%clk 00:03:08]} Rxf2 {[%clk 00:06:13]} {[%emt 00:00:23]} 57. Rc4+ {[%clk
00:02:56]} {[%emt 00:00:43]} Ke5 {[%clk 00:06:32]} {[%emt 00:00:11]} 58. Bf6+
{[%clk 00:02:20]} {[%emt 00:01:10]} Rxf6 {[%clk 00:06:18]} {[%emt 00:00:40]} 59.
Nc6+ {[%clk 00:02:18]} {[%emt 00:00:32]} Kd5 {[%clk 00:04:09]} {[%emt
00:02:48]} 60. Rd4+ {[%clk 00:02:43]} Kxc6 {[%clk 00:04:37]} {[%emt 00:00:09]}
61. Kxf6 {[%clk 00:03:06]} {[%emt 00:00:03]} Kc5 {[%clk 00:05:01]} {[%emt
00:00:04]} 62. Ke5 {[%clk 00:02:28]} {[%emt 00:01:04]} b3 {[%clk 00:05:26]}
{[%emt 00:00:38]} 63. Rd8 {[%clk 00:00:34]} {[%emt 00:01:50]} Kc4 {[%clk
00:05:54]} {[%emt 00:00:36]} 64. Rc8+ {[%clk 00:00:51]} Kd3 {[%clk 00:06:20]}
65. Rd8+ {[%clk 00:00:46]} {[%emt 00:00:17]} Kc2 {[%clk 00:06:14]} {[%emt
00:00:36]} 66. Kd4 {[%clk 00:01:09]} {[%emt 00:00:44]} b2 {[%clk 00:06:38]} 67.
Rc8+ {[%clk 00:01:35]} Kd2 {[%clk 00:07:02]} {[%emt 00:00:03]} 68. Rb8 {[%clk
00:01:54]} Kc2 {[%clk 00:07:28]} 69. Rxb2+ {[%clk 00:02:19]} {[%emt 00:00:03]}
Kxb2 1/2-1/2

[Event "Chess Festival Groningen 2023 | A"]
[Site "Groningen, Netherlands"]
[Date "2023.12.23"]
[Round "3.1"]
[White "Kazakouski, Valery"]
[Black "Nevednichy, Vladislav"]
[Result "1-0"]
[TimeControl "90min/40moves + 30min + 30sec/move"]
[WhiteElo "2586"]
[BlackElo "2452"]

1. d4 {[%clk 01:30:56]} {[%emt 00:00:02]} d5 {[%clk 01:30:43]} {[%emt
00:00:18]} 2. c4 {[%clk 01:31:19]} {[%emt 00:00:07]} e6 {[%clk 01:31:11]}
{[%emt 00:00:03]} 3. Nc3 {[%clk 01:31:24]} {[%emt 00:00:24]} Nf6 {[%clk
01:31:34]} {[%emt 00:00:07]} 4. cxd5 {[%clk 01:31:23]} {[%emt 00:00:31]} exd5
{[%clk 01:31:43]} {[%emt 00:00:22]} 5. Bg5 {[%clk 01:31:45]} {[%emt 00:00:08]}
c6 {[%clk 01:32:03]} {[%emt 00:00:10]} 6. e3 {[%clk 01:32:08]} {[%emt
00:00:06]} Be7 {[%clk 01:30:12]} {[%emt 00:02:21]} 7. Bd3 {[%clk 01:32:09]}
{[%emt 00:00:29]} Nbd7 {[%clk 01:29:32]} {[%emt 00:01:11]} 8. h3 {[%clk
01:32:00]} {[%emt 00:00:39]} O-O {[%clk 01:28:41]} {[%emt 00:01:22]} 9. Nf3
{[%clk 01:31:39]} {[%emt 00:00:50]} Re8 {[%clk 01:28:51]} {[%emt 00:00:21]} 10.
O-O {[%clk 01:31:13]} {[%emt 00:00:55]} Nf8 {[%clk 01:27:26]} {[%emt 00:01:55]}
11. Qc2 {[%clk 01:30:11]} {[%emt 00:01:32]} g6 {[%clk 01:11:55]} {[%emt
00:16:00]} 12. Ne5 {[%clk 01:20:58]} {[%emt 00:09:43]} N6d7 {[%clk 01:10:19]}
{[%emt 00:02:07]} 13. Bxe7 {[%clk 01:16:26]} {[%emt 00:05:03]} Qxe7 {[%clk
01:09:15]} {[%emt 00:01:34]} 14. Nf3 {[%clk 01:16:39]} {[%emt 00:00:14]} Ne6
{[%clk 00:53:40]} {[%emt 00:16:07]} 15. Rfe1 {[%clk 01:04:14]} {[%emt
00:12:54]} Nf6 {[%clk 00:48:21]} {[%emt 00:05:49]} 16. e4 {[%clk 00:57:06]}
{[%emt 00:07:39]} dxe4 {[%clk 00:34:50]} {[%emt 00:14:02]} 17. Nxe4 {[%clk
00:53:17]} {[%emt 00:04:18]} Nxe4 {[%clk 00:30:03]} {[%emt 00:05:18]} 18. Rxe4
{[%clk 00:53:05]} {[%emt 00:00:41]} Bd7 {[%clk 00:29:30]} {[%emt 00:01:04]} 19.
Rae1 {[%clk 00:42:33]} {[%emt 00:11:01]} Rad8 {[%clk 00:28:18]} {[%emt
00:01:43]} 20. Bc4 {[%clk 00:37:01]} {[%emt 00:06:01]} Bc8 {[%clk 00:13:06]}
{[%emt 00:15:43]} 21. Qc3 {[%clk 00:35:05]} {[%emt 00:02:24]} Rd6 {[%clk
00:08:14]} {[%emt 00:05:23]} 22. Qa3 {[%clk 00:31:40]} {[%emt 00:03:55]} b5
{[%clk 00:05:58]} {[%emt 00:02:47]} 23. Bb3 {[%clk 00:30:49]} {[%emt 00:01:21]}
Qc7 {[%clk 00:05:46]} {[%emt 00:00:42]} 24. Ng5 {[%clk 00:29:03]} {[%emt
00:02:15]} h6 {[%clk 00:04:30]} {[%emt 00:01:47]} 25. Nxe6 {[%clk 00:26:17]}
{[%emt 00:03:17]} Bxe6 {[%clk 00:04:59]} {[%emt 00:00:02]} 26. Qc5 {[%clk
00:26:37]} {[%emt 00:00:09]} Qd7 {[%clk 00:02:59]} {[%emt 00:02:30]} 27. h4
{[%clk 00:24:00]} {[%emt 00:03:07]} a5 {[%clk 00:01:34]} {[%emt 00:01:57]} 28.
a3 {[%clk 00:23:30]} {[%emt 00:00:59]} a4 {[%clk 00:01:15]} {[%emt 00:00:50]}
29. Ba2 {[%clk 00:23:53]} {[%emt 00:00:06]} h5 {[%clk 00:00:47]} {[%emt
00:00:58]} 30. Qg5 {[%clk 00:19:46]} {[%emt 00:04:36]} Qe7 {[%clk 00:00:51]}
{[%emt 00:00:26]} 31. Qf4 {[%clk 00:12:10]} {[%emt 00:08:04]} Qd8 {[%clk
00:00:50]} {[%emt 00:00:33]} 32. g3 {[%clk 00:11:19]} {[%emt 00:01:21]} Kg7
{[%clk 00:00:45]} {[%emt 00:00:36]} 33. Qe5+ {[%clk 00:10:36]} {[%emt
00:01:12]} Kg8 {[%clk 00:01:05]} {[%emt 00:00:10]} 34. Qc5 {[%clk 00:09:36]}
{[%emt 00:01:29]} Qd7 {[%clk 00:00:59]} {[%emt 00:00:36]} 35. Qg5 {[%clk
00:05:34]} {[%emt 00:04:32]} Qe7 {[%clk 00:01:26]} {[%emt 00:00:03]} 36. Bxe6
{[%clk 00:04:44]} {[%emt 00:01:20]} Qxg5 {[%clk 00:01:44]} {[%emt 00:00:13]} 37.
Bxf7+ {[%clk 00:05:07]} {[%emt 00:00:07]} Kxf7 {[%clk 00:02:11]} {[%emt
00:00:03]} 38. hxg5 {[%clk 00:05:25]} {[%emt 00:00:12]} Rxe4 {[%clk 00:01:47]}
{[%emt 00:00:55]} 39. Rxe4 {[%clk 00:05:53]} {[%emt 00:00:02]} Rd5 {[%clk
00:02:06]} {[%emt 00:00:11]} 40. f4 {[%clk 00:05:28]} {[%emt 00:00:54]} b4
{[%clk 00:01:20]} {[%emt 00:01:17]} 41. Kf2 {[%clk 00:03:24]} {[%emt 00:02:33]}
Rb5 {[%clk 00:01:34]} {[%emt 00:00:16]} 42. Re2 {[%clk 00:00:34]} {[%emt
00:03:20]} bxa3 {[%clk 00:00:44]} {[%emt 00:01:22]} 43. bxa3 {[%clk 00:00:53]}
{[%emt 00:00:11]} Rb3 {[%clk 00:00:34]} {[%emt 00:00:40]} 44. Re3 {[%clk
00:01:10]} {[%emt 00:00:12]} Rb1 {[%clk 00:26:45]} {[%emt 00:04:19]} 45. Ke2
{[%clk 00:29:24]} {[%emt 00:02:16]} Ra1 {[%clk 00:18:51]} {[%emt 00:08:25]} 46.
Rc3 {[%clk 00:19:09]} {[%emt 00:10:44]} Ke7 {[%clk 00:16:22]} {[%emt 00:03:00]}
47. Ke3 {[%clk 00:17:06]} {[%emt 00:02:32]} Kf7 {[%clk 00:08:08]} {[%emt
00:08:44]} 48. Ke4 {[%clk 00:08:26]} {[%emt 00:09:08]} Re1+ {[%clk 00:08:29]}
{[%emt 00:00:10]} 49. Re3 {[%clk 00:08:51]} {[%emt 00:00:05]} Rb1 {[%clk
00:08:24]} {[%emt 00:00:35]} 50. Rc3 {[%clk 00:07:01]} {[%emt 00:02:21]} Re1+
{[%clk 00:08:48]} {[%emt 00:00:06]} 51. Kf3 {[%clk 00:07:27]} {[%emt 00:00:04]}
Ra1 {[%clk 00:08:54]} {[%emt 00:00:24]} 52. Kg2 {[%clk 00:06:05]} {[%emt
00:01:52]} Kg7 {[%clk 00:07:59]} {[%emt 00:01:26]} 53. Kf2 {[%clk 00:04:20]}
{[%emt 00:02:14]} Kf7 {[%clk 00:08:19]} {[%emt 00:00:10]} 54. Ke2 {[%clk
00:04:45]} {[%emt 00:00:06]} Rg1 {[%clk 00:07:01]} {[%emt 00:01:48]} 55. Re3
{[%clk 00:04:14]} {[%emt 00:01:01]} Ra1 {[%clk 00:07:11]} {[%emt 00:00:20]} 56.
Kf3 {[%clk 00:04:10]} {[%emt 00:00:35]} Rd1 {[%clk 00:06:05]} {[%emt 00:01:36]}
57. Ke4 {[%clk 00:03:59]} {[%emt 00:00:41]} Ke6 {[%clk 00:05:34]} {[%emt
00:01:01]} 58. Rc3 {[%clk 00:02:16]} {[%emt 00:02:14]} Re1+ {[%clk 00:05:13]}
{[%emt 00:00:51]} 59. Kf3 {[%clk 00:02:37]} {[%emt 00:00:09]} Kd6 {[%clk
00:04:09]} {[%emt 00:01:34]} 60. Rc4 {[%clk 00:03:00]} {[%emt 00:00:07]} Rf1+
{[%clk 00:02:37]} {[%emt 00:02:03]} 61. Kg2 {[%clk 00:03:14]} {[%emt 00:00:15]}
Rb1 {[%clk 00:02:45]} {[%emt 00:00:21]} 62. Rxa4 {[%clk 00:03:37]} {[%emt
00:00:08]} Kd5 {[%clk 00:02:29]} {[%emt 00:00:46]} 63. Rb4 {[%clk 00:03:19]}
{[%emt 00:00:48]} Ra1 {[%clk 00:02:54]} {[%emt 00:00:05]} 64. a4 {[%clk
00:03:18]} {[%emt 00:00:30]} Ke4 {[%clk 00:01:52]} {[%emt 00:01:32]} 65. Rc4
{[%clk 00:02:06]} {[%emt 00:01:42]} Kd5 {[%clk 00:01:46]} {[%emt 00:00:37]} 66.
Rc5+ {[%clk 00:02:34]} {[%emt 00:00:02]} Kd6 {[%clk 00:02:13]} {[%emt
00:00:03]} 67. f5 {[%clk 00:02:39]} {[%emt 00:00:25]} gxf5 {[%clk 00:02:17]}
{[%emt 00:00:26]} 68. g6 {[%clk 00:02:45]} {[%emt 00:00:23]} Ke7 {[%clk
00:01:53]} {[%emt 00:00:54]} 69. Rxf5 {[%clk 00:02:38]} {[%emt 00:00:37]} Rxa4
{[%clk 00:02:14]} {[%emt 00:00:10]} 70. g7 {[%clk 00:02:58]} {[%emt 00:00:10]}
Ra8 {[%clk 00:02:40]} {[%emt 00:00:04]} 71. Kh3 {[%clk 00:02:44]} {[%emt
00:00:43]} Rg8 {[%clk 00:03:05]} {[%emt 00:00:05]} 72. Rg5 {[%clk 00:03:09]}
{[%emt 00:00:05]} Kf6 {[%clk 00:03:23]} {[%emt 00:00:13]} 73. Kh4 {[%clk
00:03:33]} {[%emt 00:00:06]} Rxg7 {[%clk 00:03:43]} {[%emt 00:00:10]} 74. Rxg7
{[%clk 00:03:57]} {[%emt 00:00:06]} Kxg7 {[%clk 00:04:11]} {[%emt 00:00:02]} 75.
Kxh5 {[%clk 00:04:20]} {[%emt 00:00:07]} 1-0

[Event "Chess Festival Groningen 2023 | A"]
[Site "Groningen, Netherlands"]
[Date "2023.12.23"]
[Round "3.2"]
[White "Romanov, Evgeny"]
[Black "Aarav, Dengla"]
[Result "1-0"]
[TimeControl "90min/40moves + 30min + 30sec/move"]
[BlackFideId "45059756"]
[WhiteElo "2561"]
[BlackElo "2382"]

1. d4 {[%clk 01:30:18]} {[%emt 00:00:41]} d5 {[%clk 01:30:18]} {[%emt
00:00:42]} 2. c4 {[%clk 01:30:40]} {[%emt 00:00:08]} e6 {[%clk 01:30:28]}
{[%emt 00:00:20]} 3. Nf3 {[%clk 01:30:53]} {[%emt 00:00:17]} a6 {[%clk
01:30:17]} {[%emt 00:00:42]} 4. Bg5 {[%clk 01:31:03]} {[%emt 00:00:19]} Be7
{[%clk 01:30:14]} {[%emt 00:00:34]} 5. Bxe7 {[%clk 01:31:23]} {[%emt 00:00:10]}
Nxe7 {[%clk 01:29:34]} {[%emt 00:01:10]} 6. Nbd2 {[%clk 01:30:30]} {[%emt
00:01:23]} Nd7 {[%clk 01:19:01]} {[%emt 00:11:04]} 7. Rc1 {[%clk 01:29:56]}
{[%emt 00:01:04]} b6 {[%clk 00:59:28]} {[%emt 00:20:03]} 8. cxd5 {[%clk
01:27:56]} {[%emt 00:02:29]} exd5 {[%clk 00:59:47]} {[%emt 00:00:11]} 9. b4
{[%clk 01:14:55]} {[%emt 00:13:31]} Bb7 {[%clk 00:51:29]} {[%emt 00:08:48]} 10.
g3 {[%clk 01:07:30]} {[%emt 00:07:54]} Rc8 {[%clk 00:49:14]} {[%emt 00:02:46]}
11. Bh3 {[%clk 01:07:34]} {[%emt 00:00:26]} O-O {[%clk 00:38:17]} {[%emt
00:11:27]} 12. O-O {[%clk 01:07:26]} {[%emt 00:00:37]} f5 {[%clk 00:31:57]}
{[%emt 00:06:51]} 13. Nb3 {[%clk 01:06:30]} {[%emt 00:01:26]} Nf6 {[%clk
00:27:00]} {[%emt 00:05:27]} 14. Ne5 {[%clk 01:02:35]} {[%emt 00:04:24]} Qd6
{[%clk 00:26:55]} {[%emt 00:00:36]} 15. a3 {[%clk 01:01:52]} {[%emt 00:01:13]}
Nd7 {[%clk 00:26:44]} {[%emt 00:00:40]} 16. Nxd7 {[%clk 00:54:49]} {[%emt
00:07:33]} Qxd7 {[%clk 00:27:13]} {[%emt 00:00:02]} 17. Rc3 {[%clk 00:55:06]}
{[%emt 00:00:12]} Bc6 {[%clk 00:25:01]} {[%emt 00:02:42]} 18. Nd2 {[%clk
00:48:43]} {[%emt 00:06:52]} Ba4 {[%clk 00:23:29]} {[%emt 00:02:03]} 19. Qb1
{[%clk 00:46:23]} {[%emt 00:02:49]} Qd6 {[%clk 00:10:34]} {[%emt 00:13:26]} 20.
e3 {[%clk 00:45:12]} {[%emt 00:01:41]} g5 {[%clk 00:09:37]} {[%emt 00:01:27]}
21. Rfc1 {[%clk 00:43:19]} {[%emt 00:02:22]} g4 {[%clk 00:09:45]} {[%emt
00:00:23]} 22. Bf1 {[%clk 00:42:12]} {[%emt 00:01:36]} Ra8 {[%clk 00:07:56]}
{[%emt 00:02:21]} 23. b5 {[%clk 00:35:41]} {[%emt 00:07:01]} Ra7 {[%clk
00:05:02]} {[%emt 00:03:24]} 24. bxa6 {[%clk 00:33:52]} {[%emt 00:02:19]} h5
{[%clk 00:01:19]} {[%emt 00:04:13]} 25. Bb5 {[%clk 00:27:44]} {[%emt 00:06:37]}
Bxb5 {[%clk 00:01:36]} {[%emt 00:00:14]} 26. Qxb5 {[%clk 00:28:12]} {[%emt
00:00:01]} Rfa8 {[%clk 00:01:35]} {[%emt 00:00:32]} 27. Nb3 {[%clk 00:22:51]}
{[%emt 00:05:51]} Rxa6 {[%clk 00:00:36]} {[%emt 00:01:30]} 28. Rxc7 {[%clk
00:22:19]} {[%emt 00:01:01]} h4 {[%clk 00:00:42]} {[%emt 00:00:24]} 29. Rd7
{[%clk 00:16:06]} {[%emt 00:06:42]} Qe6 {[%clk 00:00:58]} {[%emt 00:00:14]} 30.
Rcc7 {[%clk 00:16:13]} {[%emt 00:00:22]} Rxa3 {[%clk 00:00:31]} {[%emt
00:00:58]} 31. Rxe7 {[%clk 00:14:19]} {[%emt 00:02:24]} Rxb3 {[%clk 00:00:38]}
{[%emt 00:00:24]} 32. Rxe6 {[%clk 00:13:55]} {[%emt 00:00:53]} Rxb5 {[%clk
00:00:55]} {[%emt 00:00:14]} 33. gxh4 {[%clk 00:14:13]} {[%emt 00:00:11]} Rf8
{[%clk 00:00:38]} {[%emt 00:00:48]} 34. Ree7 {[%clk 00:13:07]} {[%emt
00:01:35]} Rf6 {[%clk 00:00:32]} {[%emt 00:00:37]} 35. h5 {[%clk 00:13:06]}
{[%emt 00:00:31]} Ra5 {[%clk 00:00:44]} {[%emt 00:00:19]} 36. h6 {[%clk
00:13:06]} {[%emt 00:00:30]} 1-0